bitfinex/quotes_ETHUSD_20250823
["timestamp","ask_amount","ask_price","bid_price","bid_amount"]
[1755962574582,3.32955028,4757.2,4757.1,0.001]
[1755962574798,3.41380928,4757.2,4757.1,0.001]
[1755962575006,10.19160275,4757.2,4757.1,0.001]
[1755962575217,3.0,4757.1,4756.3,0.001]
[1755962575374,10.92292959,4756.4,4756.3,0.001]
[1755962575575,18.89437006,4756.4,4756.3,0.001]
[1755962575794,3.0,4756.3,4755.6,0.001]
[1755962576076,14.21552959,4755.7,4755.6,0.001]
[1755962576271,20.35247953,4755.7,4755.6,0.001]
[1755962576589,21.01707829,4755.7,4755.6,0.001]
[1755962576893,2.1028283,4755.5,4753.8,0.021]
[1755962577093,7.46463837,4755.5,4753.8,0.021]
[1755962577406,8.17751111,4755.5,4753.8,0.021]
[1755962577906,7.84843837,4755.5,4753.8,0.021]
[1755962578304,3.0,4755.4,4753.8,0.021]
[1755962578602,11.21552959,4754.9,4753.8,0.021]
[1755962578903,14.79652959,4754.9,4753.9,0.66]
[1755962579293,14.90132959,4754.9,4754.2,0.66]
[1755962579498,3.9784,4754.9,4754.2,0.66]
[1755962579694,3.9784,4754.9,4753.9,1.1063]
[1755962580010,0.736984,4755.3,4754.9,0.66]
[1755962580377,0.2926,4755.0,4754.9,0.66]
[1755962580976,0.1048,4755.3,4754.9,0.66]
[1755962581504,0.1048,4755.3,4754.8,0.021]
[1755962581811,0.1048,4755.3,4755.2,0.9579]
[1755962582211,0.1048,4755.3,4755.2,1.4042]
[1755962582389,0.1048,4755.3,4755.2,0.9579]
[1755962582592,0.3236,4755.3,4755.2,0.66]
[1755962583413,0.3236,4755.3,4754.8,0.021]
[1755962583578,0.1048,4754.9,4754.8,0.021]
[1755962583782,0.3974,4754.9,4754.8,0.021]
[1755962584716,0.1048,4754.9,4754.8,0.3189]
[1755962585381,0.3236,4754.9,4754.8,0.021]
[1755962585888,0.1048,4754.9,4754.8,1.4252]
[1755962586093,0.1048,4755.2,4754.9,0.66]
[1755962586302,0.1048,4755.2,4755.1,0.9579]
[1755962587195,0.1048,4755.2,4755.1,0.66]
[1755962588216,0.107,4755.2,4755.1,0.66]
[1755962588885,0.107,4755.2,4754.8,0.021]
[1755962589211,0.1048,4755.2,4754.9,0.4463]
[1755962589421,0.0067,4755.0,4754.8,0.021]
[1755962589588,6.23909365,4754.9,4754.8,0.021]
[1755962589784,4.329144,4754.9,4754.8,0.021]
[1755962590322,4.2475,4754.9,4754.8,0.021]
[1755962590535,6.35059365,4754.9,4754.8,0.021]
[1755962591112,0.2207,4754.9,4754.8,0.021]
[1755962591311,3.8017,4754.9,4754.8,0.021]
[1755962591618,0.2096,4754.9,4754.8,1.4252]
[1755962591787,0.1048,4754.9,4754.8,1.4252]
[1755962591988,1.617,4755.7,4754.9,0.66]
[1755962592185,0.1048,4755.2,4754.9,0.66]
[1755962592384,0.1048,4755.2,4755.1,0.9579]
[1755962592821,0.1048,4755.2,4755.1,1.4042]
[1755962593000,0.1048,4755.2,4755.1,0.9579]
[1755962593397,0.1048,4755.2,4755.1,0.66]
[1755962594715,0.3212,4755.2,4755.1,0.66]
[1755962596993,0.65023053,4755.2,4754.8,0.021]
[1755962597197,3.0,4755.0,4754.8,0.021]
[1755962597495,2.10322561,4754.7,4753.8,0.021]
[1755962597708,10.81812959,4754.2,4753.8,0.021]
[1755962597928,1.617,4754.6,4753.8,0.021]
[1755962598125,0.2926,4754.2,4753.8,0.021]
[1755962598332,0.1048,4754.0,4753.8,0.021]
[1755962598528,3.9735,4754.0,4753.8,0.021]
[1755962598720,6.46559179,4754.0,4753.8,0.021]
[1755962599328,0.3925,4754.0,4753.8,0.021]
[1755962599628,3.9735,4754.0,4753.8,0.021]
[1755962600321,4.3621,4754.0,4753.8,0.021]
[1755962601199,6.46559179,4754.0,4753.8,0.021]
[1755962601527,7.24750971,4754.0,4753.8,0.021]
[1755962601730,10.24750971,4754.0,4753.8,0.021]
[1755962602132,10.81275445,4754.0,4753.8,0.021]
[1755962602333,11.00934808,4754.0,4753.8,0.021]
[1755962602646,10.44403158,4754.0,4753.8,0.021]
[1755962603240,8.41319127,4754.0,4753.8,0.021]
[1755962603399,8.2166694,4754.0,4753.8,0.021]
[1755962603600,5.2166694,4754.0,4753.8,0.021]
[1755962603794,4.65061792,4754.0,4753.8,0.021]
[1755962604642,0.78191792,4754.0,4753.9,0.3147]
[1755962604846,3.91113689,4754.0,4753.9,0.3147]
[1755962605051,4.36391792,4754.0,4753.9,0.001]
[1755962605908,0.78191792,4754.0,4753.9,0.001]
[1755962606116,3.91113689,4754.0,4753.9,0.001]
[1755962606427,4.58891792,4754.0,4753.9,0.001]
[1755962607842,5.02001792,4754.0,4753.8,0.021]
[1755962608013,0.45278103,4753.9,4753.0,0.3531]
[1755962608639,1.08516603,4753.9,4753.8,0.3137]
[1755962609013,0.45278103,4753.9,4753.8,0.3137]
[1755962609536,3.582,4753.9,4753.8,0.3137]
[1755962611142,4.03501217,4753.9,4753.8,0.3137]
[1755962611344,4.03500984,4753.9,4753.8,0.3137]
[1755962611548,4.32271931,4753.9,4753.3,0.66]
[1755962611716,3.8697,4753.9,4753.3,0.66]
[1755962612113,3.582,4753.9,4753.8,0.9737]
[1755962612332,3.582,4753.9,4753.8,1.4048]
[1755962613213,3.6868,4753.9,4753.8,1.4048]
[1755962613945,3.9745,4753.9,4752.9,0.001]
[1755962614132,0.1048,4753.5,4753.0,0.4311]
[1755962614333,0.1048,4753.2,4752.9,0.001]
[1755962615009,0.1048,4753.2,4752.9,0.4321]
[1755962615213,0.1048,4753.2,4753.1,0.3137]
[1755962615521,0.1048,4753.2,4752.9,0.001]
[1755962615721,0.1048,4753.2,4752.9,0.4321]
[1755962615939,0.1048,4753.2,4753.1,0.9737]
[1755962616165,0.1048,4753.2,4753.1,1.4048]
[1755962616317,0.1048,4753.6,4753.2,0.66]
[1755962616514,0.1048,4753.6,4753.5,0.9737]
[1755962616717,0.1048,4753.6,4753.5,1.4048]
[1755962616912,0.1048,4753.6,4753.5,0.9737]
[1755962617350,0.1048,4753.6,4753.5,1.4048]
[1755962617717,0.1048,4753.6,4753.5,0.9737]
[1755962617918,0.1048,4753.6,4753.5,1.4048]
[1755962618754,0.1048,4753.6,4753.5,0.9737]
[1755962619051,0.1048,4753.6,4753.1,0.66]
[1755962619212,3.582,4754.1,4753.1,1.0911]
[1755962619417,0.1048,4753.3,4753.1,1.0911]
[1755962619749,0.1048,4753.3,4752.9,0.001]
[1755962619750,0.1048,4753.6,4753.3,0.66]
[1755962619946,0.1048,4753.6,4752.9,0.7658]
[1755962620147,0.1048,4753.6,4753.2,0.66]
[1755962620518,0.2877,4753.3,4753.0,0.66]
[1755962620746,0.3925,4753.3,4753.0,0.66]
[1755962621428,0.3925,4753.3,4752.9,0.001]
[1755962621617,2.55687909,4753.2,4752.9,0.001]
[1755962621817,0.2877,4753.0,4752.9,0.001]
[1755962622255,3.29824787,4753.0,4752.9,0.001]
[1755962622418,26.55306782,4753.0,4752.9,0.001]
[1755962622626,2.1041557,4752.5,4751.3,0.001]
[1755962622833,11.80843149,4752.5,4751.3,0.001]
[1755962623123,12.26143149,4752.5,4751.3,0.001]
[1755962623323,12.59070382,4752.5,4751.3,0.001]
[1755962623643,9.00970382,4752.5,4751.3,0.001]
[1755962623839,12.59070382,4752.5,4751.3,0.001]
[1755962624166,12.59070382,4752.5,4751.4,0.001]
[1755962624322,12.39385762,4752.5,4751.4,0.001]
[1755962624522,12.02350477,4752.5,4751.4,0.001]
[1755962625535,5.10433282,4752.1,4751.4,0.001]
[1755962625820,3.2877,4751.9,4751.4,0.001]
[1755962626023,5.8457349,4751.9,4751.4,0.001]
[1755962626424,6.62804677,4751.9,4751.4,0.001]
[1755962626632,6.931998,4751.9,4751.4,0.001]
[1755962626859,2.10459854,4751.5,4751.4,0.001]
[1755962627021,9.13795971,4751.5,4751.4,0.001]
[1755962627225,11.04591206,4751.5,4751.4,0.001]
[1755962627425,11.49891206,4751.5,4751.4,0.001]
[1755962627633,11.04591206,4751.5,4751.4,0.001]
[1755962627851,8.94131352,4751.5,4751.4,0.001]
[1755962628323,11.04591206,4751.5,4751.4,0.001]
[1755962629053,11.49781206,4751.5,4751.4,0.001]
[1755962630838,11.58218706,4751.5,4751.4,0.001]
[1755962631350,11.12857354,4751.5,4751.4,0.001]
[1755962631860,11.58045725,4751.5,4751.4,0.001]
[1755962632062,11.90980674,4751.5,4751.4,0.001]
[1755962632465,12.01540674,4751.5,4751.4,0.001]
[1755962632864,8.43340674,4751.5,4751.4,0.001]
[1755962633158,11.56452303,4751.5,4751.4,0.001]
[1755962633330,11.02824803,4751.5,4751.4,0.001]
[1755962634335,11.48014803,4751.5,4751.4,0.001]
[1755962634544,11.93152255,4751.5,4751.4,0.001]
[1755962635334,11.48014803,4751.5,4751.4,0.001]
[1755962637963,11.02824803,4751.5,4751.4,0.001]
[1755962638344,10.74054803,4751.5,4751.4,0.001]
[1755962638531,8.63594949,4751.5,4751.4,0.7286]
[1755962638959,8.3066,4751.5,4751.4,0.7286]
[1755962639363,5.3066,4751.5,4751.4,0.7286]
[1755962640254,1.7236,4751.5,4751.4,0.7286]
[1755962640459,5.3066,4751.5,4751.4,0.7286]
[1755962642139,5.63590755,4751.5,4751.4,0.7286]
[1755962645470,2.05290755,4751.5,4751.4,0.7286]
[1755962645772,5.63590755,4751.5,4751.4,0.2877]
[1755962646574,7.74050609,4751.5,4751.4,0.001]
[1755962646736,7.75900609,4751.5,4751.4,0.001]
[1755962647765,5.65440755,4751.5,4751.4,0.001]
[1755962647969,7.74050609,4751.5,4751.4,0.001]
[1755962648374,22.29604313,4751.5,4751.4,0.001]
[1755962648773,5.10464284,4751.4,4751.3,0.001]
[1755962648959,5.86648453,4751.4,4751.3,0.001]
[1755962649363,6.62738512,4751.4,4751.3,0.001]
[1755962649945,6.62738637,4751.4,4751.3,0.001]
[1755962650143,15.89855969,4750.9,4750.8,0.021]
[1755962650346,9.55530603,4750.9,4750.8,0.021]
[1755962650609,10.00000603,4750.9,4750.8,0.021]
[1755962651347,10.19713989,4750.9,4750.8,0.021]
[1755962651587,10.95329465,4750.9,4750.8,0.021]
[1755962652091,2.10504157,4750.5,4750.4,0.001]
[1755962652291,11.26601712,4750.5,4750.4,0.001]
[1755962652474,11.71071712,4750.5,4750.4,0.001]
[1755962652793,11.81631712,4750.5,4750.4,0.001]
[1755962653588,2.10530748,4749.9,4749.2,0.001]
[1755962653758,10.32070739,4749.9,4749.2,0.001]
[1755962653951,10.32070739,4749.9,4749.2,0.4419]
[1755962654149,10.12357353,4749.9,4749.2,0.001]
[1755962654352,10.08227552,4749.9,4749.2,0.001]
[1755962655086,10.08227552,4749.9,4749.4,0.001]
[1755962656356,10.08215068,4749.9,4749.4,0.001]
[1755962656797,9.77305068,4749.9,4749.8,0.3067]
[1755962657024,9.77305068,4749.9,4749.8,0.02]
[1755962657025,10.07645068,4749.9,4749.8,0.02]
[1755962658922,10.83354983,4749.9,4749.8,0.02]
[1755962659295,10.52685068,4749.9,4749.8,0.02]
[1755962659611,10.52667161,4749.9,4749.8,0.02]
[1755962659983,2.10548478,4749.5,4749.4,0.001]
[1755962660189,11.28564743,4749.5,4749.4,0.001]
[1755962660380,11.73838912,4749.5,4749.4,0.001]
[1755962661317,11.3312132,4749.5,4749.4,0.001]
[1755962661494,11.7801132,4749.5,4749.4,0.001]
[1755962662910,11.3312132,4749.5,4749.4,0.001]
[1755962664213,18.3312132,4749.5,4749.4,0.001]
[1755962664421,2.10557345,4749.3,4749.2,0.001]
[1755962664622,28.1991279,4748.9,4748.8,0.02]
[1755962664921,32.54356959,4748.9,4748.8,0.02]
[1755962665101,32.87309519,4748.9,4748.8,0.02]
[1755962665507,33.31919519,4748.9,4748.8,0.02]
[1755962665818,32.54356959,4748.9,4748.8,0.02]
[1755962666120,32.23586959,4748.9,4748.8,0.7753]
[1755962666496,0.45274169,4748.9,4748.8,0.7753]
[1755962666697,3.584,4748.9,4748.8,0.7753]
[1755962666897,4.03674169,4748.9,4748.8,0.7753]
[1755962667097,6.14249249,4748.9,4748.8,0.7753]
[1755962667294,2.34464099,4749.5,4748.8,0.7753]
[1755962667623,2.34464099,4749.5,4748.9,0.4604]
[1755962667624,5.203,4749.4,4748.9,0.4604]
[1755962667838,1.619,4749.4,4748.9,0.4604]
[1755962667996,3.584,4749.3,4749.1,0.001]
[1755962668190,3.584,4749.3,4749.2,0.4604]
[1755962668513,3.584,4749.3,4749.2,0.7553]
[1755962669800,3.5552,4749.3,4749.2,0.7553]
[1755962670130,1.619,4749.4,4749.2,0.7553]
[1755962670630,3.584,4749.3,4749.2,0.7553]
[1755962670923,3.584,4749.3,4749.2,0.2949]
[1755962671132,3.91346623,4749.3,4749.2,0.2949]
[1755962671423,3.91346623,4749.3,4749.2,0.7553]
[1755962674708,4.01906623,4749.3,4749.2,0.7553]
[1755962675426,4.01906623,4749.3,4749.2,1.4153]
[1755962675996,4.01906623,4749.3,4749.2,1.76950554]
[1755962675997,0.43506623,4749.3,4749.2,1.76950554]
[1755962676208,0.1056,4749.3,4749.2,1.76950554]
[1755962676609,0.1056,4749.3,4749.2,3.87512332]
[1755962677019,3.6886,4749.8,4749.3,0.66]
[1755962677226,3.6886,4749.8,4749.7,0.9549]
[1755962677602,3.6886,4749.8,4749.7,1.4153]
[1755962683850,3.6886,4749.8,4749.7,2.4153]
[1755962685140,3.6906,4749.8,4749.7,2.4153]
[1755962686309,0.1076,4749.8,4749.7,2.19643]
[1755962686516,0.002,4749.8,4749.7,2.65683]
[1755962686734,0.002,4749.8,4749.7,4.76222613]
[1755962698754,0.002,4749.8,4749.7,4.86782613]
[1755962701158,0.002,4749.8,4749.7,7.86782613]
[1755962701661,1e-08,4749.8,4749.7,12.12782613]
[1755962701874,1e-08,4749.8,4749.7,12.21216713]
[1755962703058,0.022,4750.8,4749.7,12.21216713]
[1755962703059,0.022,4750.8,4750.3,0.66]
[1755962703262,0.022,4750.8,4750.7,6.16595295]
[1755962703464,0.022,4750.8,4750.7,9.74595295]
[1755962703659,0.022,4750.8,4750.7,10.29218195]
[1755962706661,0.022,4750.8,4750.7,6.71218195]
[1755962706869,0.022,4750.8,4750.7,9.08495295]
[1755962707029,0.022,4750.8,4750.7,11.11870486]
[1755962707563,0.3085,4750.8,4750.7,0.1056]
[1755962707863,0.022,4750.8,4750.7,6.08495295]
[1755962708066,0.022,4750.8,4750.7,6.54685295]
[1755962708356,0.022,4750.8,4750.7,8.23394215]
[1755962708557,0.022,4750.8,4750.7,11.23394215]
[1755962712075,0.022,4750.8,4750.7,11.31827015]
[1755962715571,0.022,4750.8,4750.7,1.7714172]
[1755962715572,0.0267,4750.8,4750.7,1.7714172]
[1755962715758,0.4892,4750.8,4750.4,1.619]
[1755962716092,0.4892,4750.8,4749.8,0.08435]
[1755962716093,0.4625,4750.7,4749.8,0.08435]
[1755962716239,0.0092,4749.9,4749.8,0.08435]
[1755962716586,0.4671,4749.9,4749.8,0.08435]
[1755962716756,0.4671,4749.9,4749.8,3.578]
[1755962717182,0.4671,4749.9,4749.1,0.001]
[1755962717398,0.0092,4749.9,4749.7,4.578]
[1755962717577,0.4579,4749.8,4749.7,5.238]
[1755962717773,0.4579,4749.8,4749.7,4.578]
[1755962717774,0.7502,4749.8,4749.7,4.578]
[1755962718811,0.7502,4749.8,4749.7,1.66]
[1755962720287,0.7502,4749.8,4749.7,1.0]
[1755962720999,1.07961888,4749.8,4749.7,1.0]
[1755962721592,3.18497068,4749.8,4749.7,1.0]
[1755962722379,6.18497068,4749.8,4749.7,1.0]
[1755962723499,6.63739455,4749.8,4749.7,1.0]
[1755962725609,6.63739455,4749.8,4748.7,0.001]
[1755962725610,3.0,4749.7,4748.7,0.001]
[1755962725903,2.10590457,4748.6,4747.5,0.001]
[1755962726104,2.42097253,4748.4,4747.5,0.001]
[1755962726274,5.42097253,4748.4,4747.5,0.001]
[1755962726471,5.85987253,4748.4,4747.5,0.001]
[1755962726687,6.27389955,4748.4,4747.5,0.001]
[1755962727209,6.38102886,4748.4,4747.5,0.001]
[1755962727411,9.96602886,4748.4,4747.5,0.001]
[1755962727616,9.79308614,4748.4,4747.5,0.001]
[1755962730506,5.10601689,4748.3,4747.5,0.001]
[1755962730711,5.85991689,4748.3,4747.5,0.001]
[1755962733194,2.10619431,4747.9,4747.5,0.001]
[1755962733393,6.00419431,4747.9,4747.5,0.001]
[1755962733591,9.44309431,4747.9,4747.5,0.001]
[1755962733915,2.1063274,4747.6,4747.5,0.001]
[1755962734114,7.0403274,4747.6,4747.5,0.001]
[1755962734414,2.10641614,4747.4,4745.8,0.02]
[1755962734588,9.00441614,4747.4,4745.8,0.4847]
[1755962734788,9.44331614,4747.4,4746.1,0.4647]
[1755962735189,9.33407255,4747.4,4746.1,0.4647]
[1755962735401,9.33407255,4747.4,4746.4,0.4647]
[1755962735589,9.41852355,4747.4,4746.4,0.4647]
[1755962735789,9.52412355,4747.4,4746.4,0.4647]
[1755962735991,9.96302355,4747.4,4746.4,0.4647]
[1755962736292,5.94112355,4747.4,4746.4,0.4647]
[1755962736496,9.52312355,4747.4,4746.4,0.4647]
[1755962736897,9.96202355,4747.4,4746.1,0.4647]
[1755962737339,9.90842355,4747.4,4746.3,0.4647]
[1755962737684,9.57876714,4747.4,4746.3,0.4647]
[1755962737895,9.57876714,4747.4,4745.8,0.02]
[1755962740008,9.57876714,4747.4,4745.9,0.4647]
[1755962740599,16.57876714,4747.4,4745.9,0.4647]
[1755962740799,16.57876714,4747.4,4745.8,0.02]
[1755962740998,5.10646051,4747.3,4745.8,0.02]
[1755962741194,2.10654926,4747.1,4745.8,0.02]
[1755962741416,2.10659363,4747.0,4745.8,0.02]
[1755962741625,2.86049363,4747.0,4745.8,0.02]
[1755962742622,2.42159363,4747.0,4745.8,0.02]
[1755962742821,5.68859363,4747.0,4746.4,0.4647]
[1755962743000,6.31597064,4747.0,4746.4,0.4647]
[1755962743322,6.31597064,4747.0,4746.1,0.4647]
[1755962743930,7.22196646,4747.0,4745.8,0.02]
[1755962744417,2.1070819,4745.9,4745.8,0.02]
[1755962744588,10.7139819,4745.9,4745.8,0.02]
[1755962745106,11.5084133,4745.9,4745.8,0.02]
[1755962745290,11.95956346,4745.9,4745.8,0.02]
[1755962745746,11.95956346,4745.9,4744.8,0.02]
[1755962745747,2.10747438,4745.1,4744.8,0.02]
[1755962745936,2.10736199,4745.3,4745.0,0.3016]
[1755962746224,3.1056,4745.1,4745.0,0.3016]
[1755962746791,3.1056,4745.1,4745.0,0.7663]
[1755962748996,6.6906,4745.1,4745.0,0.7663]
[1755962749722,3.6906,4745.1,4745.0,0.7663]
[1755962749925,3.6896,4745.1,4745.0,0.7663]
[1755962750330,3.6896,4745.1,4745.0,1.4263]
[1755962750696,3.6906,4745.1,4745.0,1.78169469]
[1755962750905,3.6906,4745.1,4745.0,1.4263]
[1755962752642,0.1056,4745.1,4745.0,1.4263]
[1755962752840,1.62,4745.2,4745.1,2.76743714]
[1755962753012,1.62,4745.2,4745.1,4.16016296]
[1755962753013,3.583,4745.2,4745.1,4.16016296]
[1755962753541,0.43531394,4745.8,4745.3,2.76734202]
[1755962753847,0.43531394,4745.8,4745.7,0.9504]
[1755962754032,4.01831394,4745.8,4745.7,0.9504]
[1755962754341,4.47139883,4745.8,4745.7,1.4206]
[1755962754554,0.88839883,4745.8,4745.7,1.4206]
[1755962754708,4.01931394,4745.8,4745.7,1.4206]
[1755962754905,4.01931394,4745.8,4745.7,1.7733933]
[1755962754906,0.78279883,4745.8,4745.7,1.7733933]
[1755962755118,0.45508489,4746.3,4745.7,0.7606]
[1755962755317,3.583,4746.2,4745.8,1.1302]
[1755962755518,3.583,4746.2,4746.1,0.2904]
[1755962755747,4.03672965,4746.2,4746.1,1.4206]
[1755962756718,4.03772965,4746.2,4746.1,1.4206]
[1755962757253,5.00940071,4746.2,4745.2,0.4702]
[1755962757453,0.1056,4745.3,4745.0,0.4702]
[1755962757617,0.1056,4745.3,4745.2,0.2904]
[1755962757952,3.6886,4745.3,4745.2,0.7606]
[1755962758122,4.14232965,4745.3,4745.2,0.7606]
[1755962758859,0.55932965,4745.3,4745.2,0.7606]
[1755962759065,2.18177106,4745.6,4745.3,0.66]
[1755962759066,0.1056,4745.4,4745.3,0.66]
[1755962759358,1.62,4745.6,4745.5,0.66]
[1755962759513,1.62,4745.6,4745.5,3.0576595]
[1755962759514,5.203,4745.6,4745.5,3.0576595]
[1755962759711,5.203,4745.6,4745.5,3.5278595]
[1755962759938,5.203,4745.6,4745.5,4.13081928]
[1755962760133,5.203,4745.6,4745.5,2.02355978]
[1755962760345,5.203,4745.6,4745.5,4.13081928]
[1755962760559,0.1056,4746.2,4745.5,2.02355978]
[1755962760712,3.583,4746.1,4746.0,2.7670375]
[1755962760921,3.583,4746.1,4746.0,3.0574375]
[1755962760922,4.03713977,4746.1,4746.0,3.0574375]
[1755962761112,3.583,4746.1,4746.0,3.5276375]
[1755962763622,3.585,4746.3,4746.2,2.76694871]
[1755962763818,3.585,4746.3,4746.2,3.63314871]
[1755962764050,3.585,4746.3,4746.2,0.9504]
[1755962764344,3.585,4746.3,4746.2,1.4206]
[1755962765653,3.585,4746.3,4745.7,0.66]
[1755962765867,0.002,4746.3,4746.2,0.2904]
[1755962766068,3.586,4746.3,4746.2,3.52754871]
[1755962766365,3.586,4746.3,4746.2,3.63314871]
[1755962766530,0.002,4746.3,4746.2,3.63314871]
[1755962766736,0.002,4746.3,4746.2,4.20716502]
[1755962768058,0.002,4746.3,4746.2,10.79416502]
[1755962768237,1e-08,4746.3,4746.2,10.79416502]
[1755962769162,0.002,4747.1,4747.0,2.10659363]
[1755962769339,0.002,4747.1,4747.0,10.06531906]
[1755962769540,0.002,4747.1,4747.0,10.64111906]
[1755962770289,1e-08,4747.1,4747.0,10.64111906]
[1755962772988,1e-08,4747.1,4747.0,2.92391906]
[1755962773152,1e-08,4747.1,4747.0,2.21219363]
[1755962773365,1e-08,4747.1,4747.0,2.87219363]
[1755962773573,0.29400001,4747.1,4747.0,0.1056]
[1755962774086,0.29400001,4747.1,4746.6,2.10676915]
[1755962774400,0.29400001,4747.1,4746.8,0.1056]
[1755962774761,0.5653,4747.0,4746.8,0.02]
[1755962774962,0.2957,4746.9,4746.8,0.02]
[1755962775381,0.7537,4746.9,4746.8,0.02]
[1755962779501,0.7537,4746.9,4746.1,0.66]
[1755962779708,0.2957,4746.9,4746.1,0.66]
[1755962779880,0.1056,4747.0,4746.9,0.66]
[1755962780087,1e-08,4747.1,4746.9,0.9731]
[1755962780288,1e-08,4747.1,4746.9,1.4126]
[1755962780603,1e-08,4747.1,4746.9,0.9731]
[1755962781006,1e-08,4747.1,4747.0,1.0995]
[1755962781323,1e-08,4747.1,4747.0,0.9731]
[1755962781619,1e-08,4747.1,4747.0,3.07969363]
[1755962782114,1e-08,4747.1,4747.0,0.9731]
[1755962782319,1e-08,4747.1,4747.0,3.07969363]
[1755962782496,1e-08,4747.1,4747.0,3.83772299]
[1755962783224,0.00460001,4747.1,4747.0,0.66]
[1755962783520,0.55500001,4747.1,4746.3,3.7656]
[1755962784041,0.44940001,4747.1,4745.8,3.4605]
[1755962784189,0.1056,4746.7,4746.3,0.66]
[1755962784389,0.1056,4746.7,4746.3,2.76689466]
[1755962784584,0.1056,4746.7,4746.3,2.10689466]
[1755962784790,0.1056,4746.7,4746.3,0.66]
[1755962785119,0.1056,4746.7,4746.3,2.76689067]
[1755962785298,0.1056,4746.7,4746.3,0.66]
[1755962785620,0.1056,4746.7,4746.3,0.661]
[1755962785839,0.1056,4746.7,4746.6,3.07987116]
[1755962786064,0.1056,4746.7,4746.6,3.51937116]
[1755962786369,0.10560001,4747.1,4746.7,0.66]
[1755962786520,0.3075,4746.8,4746.3,0.001]
[1755962787023,2.10685993,4746.4,4746.3,0.001]
[1755962787224,2.1070819,4745.9,4745.8,0.021]
[1755962787568,7.6409819,4745.9,4745.8,0.021]
[1755962788055,7.7874819,4745.9,4745.8,0.021]
[1755962790764,3.0,4746.5,4745.8,0.021]
[1755962790918,1.62,4746.4,4745.9,0.66]
[1755962791123,3.622,4746.3,4745.9,0.66]
[1755962792189,3.622,4746.3,4745.8,0.021]
[1755962792651,3.622,4746.3,4745.9,0.66]
[1755962795564,3.622,4746.3,4745.8,0.021]
[1755962795737,3.622,4746.3,4745.9,0.66]
[1755962795952,3.622,4746.3,4745.9,1.0995]
[1755962796668,0.1056,4746.1,4746.0,1.0995]
[1755962796870,0.1056,4746.1,4746.0,1.4126]
[1755962797467,0.1056,4746.1,4746.0,0.9731]
[1755962797955,0.1056,4746.1,4746.0,0.66]
[1755962798672,0.0045,4746.1,4746.0,0.66]
[1755962798884,0.4484,4746.1,4745.8,0.021]
[1755962799047,2.11151683,4746.1,4745.8,0.021]
[1755962799251,2.1070819,4745.9,4745.8,0.021]
[1755962799481,5.7299819,4745.9,4745.8,0.021]
[1755962799775,6.1694819,4745.9,4745.8,0.021]
[1755962800946,4.0624,4745.9,4745.8,0.021]
[1755962803180,4.39211529,4745.9,4745.8,0.021]
[1755962803689,6.50889719,4745.9,4745.8,0.021]
[1755962804243,3.94071529,4745.9,4745.8,0.7736]
[1755962804876,3.94071529,4745.9,4745.8,0.3341]
[1755962805044,4.24571529,4745.9,4745.8,0.021]
[1755962805676,3.94071529,4745.9,4745.8,0.021]
[1755962806255,3.94071529,4745.9,4745.8,0.3341]
[1755962806486,3.94071529,4745.9,4745.8,0.7736]
[1755962806970,3.611,4745.9,4745.8,0.7736]
[1755962808084,3.9148,4745.9,4745.8,0.021]
[1755962808587,0.1056,4746.2,4745.8,0.3299]
[1755962808790,3.607,4746.1,4745.9,1.1192]
[1755962808952,3.607,4746.1,4746.0,0.9689]
[1755962809149,3.607,4746.1,4746.0,1.4281]
[1755962811018,3.607,4746.1,4746.0,0.9689]
[1755962813258,3.607,4746.1,4746.0,1.4281]
[1755962815764,3.896,4746.1,4745.8,0.021]
[1755962815964,0.1056,4745.9,4745.8,0.021]
[1755962816164,0.1056,4745.9,4745.8,0.3299]
[1755962818473,3.7126,4746.1,4745.9,0.66]
[1755962818800,3.7126,4746.1,4746.0,1.4281]
[1755962819167,0.1056,4746.1,4746.0,1.4281]
[1755962819362,3.7206,4746.1,4746.0,0.9689]
[1755962819566,3.7206,4746.1,4746.0,0.66]
[1755962820602,0.1056,4746.1,4746.0,1.08292]
[1755962820803,0.002,4746.3,4746.2,2.76694871]
[1755962821101,0.002,4746.3,4746.2,3.07584871]
[1755962821300,0.002,4746.3,4746.2,3.53504871]
[1755962826283,0.002,4746.3,4746.2,6.53504871]
[1755962826598,0.002,4746.3,4746.2,7.42331796]
[1755962828477,0.002,4746.3,4746.2,11.03131796]
[1755962832215,0.002,4746.3,4746.2,11.02831796]
[1755962832372,0.002,4746.3,4746.2,10.56911796]
[1755962833083,0.291,4746.3,4746.2,10.26021796]
[1755962833300,0.291,4746.3,4746.2,5.71094871]
[1755962833530,0.002,4746.3,4746.2,6.37094871]
[1755962833804,0.002,4746.3,4746.2,2.76694871]
[1755962834572,0.002,4746.3,4746.2,3.07584871]
[1755962834817,0.002,4746.3,4746.2,7.58859596]
[1755962835109,0.002,4746.3,4746.2,7.69419596]
[1755962836314,0.002,4746.8,4746.7,2.76672677]
[1755962836499,0.002,4746.8,4746.7,9.78822677]
[1755962836678,0.002,4746.8,4746.7,10.24742677]
[1755962836879,0.002,4746.8,4746.7,11.69353906]
[1755962837691,0.291,4746.8,4746.7,4.44611229]
[1755962837896,0.291,4746.8,4746.7,5.10672677]
[1755962838418,0.291,4746.8,4746.7,2.10672677]
[1755962838615,0.291,4746.8,4746.7,2.76672677]